Cogmind - Beta 15 @@@ ROGUE MODE // 2025.09.06 @ 14:10:47 Player: Ice_Kraken505 Result: Self-destructed Performance ------------- Evolutions (3) 1500 Regions Visited (5) 1000 Robots Destroyed (34) 170 Value Destroyed (827) 827 Prototype IDs (2) 40 Alien Tech Used (0) 0 Bonus (0) 0 TOTAL SCORE: 3537 Bonus ------- None Cogmind --------- Core Integrity 578/700 Matter 300/300 Energy 160/160 System Corruption 4% Temperature Hot (201) Movement Hovering (60) Location -7/Factory Parts ------- > --- POWER (2) -------- Light Nuclear Core > --- PROPULSION (4) --- Gravmag System > --- UTILITY (5) ------ Improved Signal Interpreter Core Shielding > --- WEAPON (2) ------- (None) > --- INVENTORY (5) ---- VTOL Module Component Analysis Suite Mining Claw Peak State ------------ > --- POWER ------------ Light Ion Engine Improved Deuterium Engine > --- PROPULSION ------- Gravmag System Cooled Airjet > --- UTILITY ---------- Improved Signal Interpreter Core Shielding System Restoration Module > --- WEAPON ----------- Mining Claw Spear > --- INVENTORY -------- (None) [Rating: 27] Favorites ----------- Power Light Ion Engine Engine Light Ion Engine Power Core Nuclear Core Propulsion Flight Unit Wheel Wheel Hover Unit Cooled Airjet Flight Unit Flight Unit Utility Improved Signal Interpreter Device Improved Terrain Scanner Storage Small Storage Unit Processor Improved Signal Interpreter Hackware System Shield Protection Propulsion Shielding Weapon Light Assault Rifle Energy Gun Particle Gun Ballistic Gun Light Assault Rifle Slashing Weapon Mining Claw Piercing Weapon Spear Build | -11 -10 -10 -9 -8 -7 ------- Run | Yrd Mat Min Mat Mat Fac Slots Evolved 6 | . . . 2 2 2 Power 1 | . . . . 1 . Propulsion 2 | . . . 1 . 1 Utility 3 | . . . 1 1 1 Weapon . | . . . . . . Parts Attached 42 | 8 1 10 7 4 12 Power 9 | 1 1 2 1 1 3 Engine 7 | 1 1 2 . 1 2 Core 2 | . . . 1 . 1 Reactor . | . . . . . . Propulsion 11 | 2 . 4 2 . 3 Treads . | . . . . . . Leg . | . . . . . . Wheel 3 | 2 . 1 . . . Hover 3 | . . . . . 3 Flight 5 | . . 3 2 . . Utility 11 | 3 . 1 2 2 3 Device 5 | 2 . . 1 . 2 Storage 1 | 1 . . . . . Processor 2 | . . . . 2 . Hackware 1 | . . . 1 . . Protection 2 | . . 1 . . 1 Artifact . | . . . . . . Weapon 11 | 2 . 3 2 1 3 Energy Gun 2 | . . . . . 2 Energy Cannon . | . . . . . . Ballistic Gun 7 | 2 . 3 2 . . Ballistic Cannon . | . . . . . . Launcher . | . . . . . . Special Weapon . | . . . . . . Impact Weapon . | . . . . . . Slashing Weapon 1 | . . . . 1 . Piercing Weapon 1 | . . . . . 1 Special Melee Weapon . | . . . . . . Unidentified Prototypes 2 | . . . . 1 1 Parts Lost 23 | . 3 . 2 11 7 Power 6 | . 1 . . 4 1 Propulsion 7 | . 1 . 1 3 2 Utility 8 | . 1 . 1 4 2 Weapon 2 | . . . . . 2 Highest Loss Streak 5 | . 2 . 1 5 3 To Critical Strikes . | . . . . . . Average Backups 2 | 1 4 3 2 . 1 Power . | . . . 1 . . Propulsion 1 | . 2 1 . . . Utility . | . . . . . . Weapon . | . . . . . . Tool/Special . | . . . . . . Unused Backups 4 | 1 . 1 . . 2 Power . | . . . . . . Propulsion 2 | . . 1 . . 1 Utility 1 | . . . . . 1 Weapon 1 | 1 . . . . . Tool/Special . | . . . . . . Average Slot Usage (%) 75 | . 88 89 98 78 48 Engine 8 | . 13 14 1 4 8 Core 2 | . . . 9 3 1 Wheel 4 | . 18 2 . . . Hover 4 | . . . . . 13 Flight 12 | . . 25 33 24 . Device 8 | . 13 14 11 4 2 Storage 3 | . 14 2 . . . Processor 3 | . . . . 5 7 Hackware 2 | . . . 9 7 . Protection 4 | . . 2 11 9 4 Energy Gun 1 | . . . . . 4 Ballistic Gun 15 | . 28 27 22 13 . Slashing Weapon 1 | . . . . 4 2 Peak Build Rating 27 | 9 8 9 16 16 27 Average Rating 12 | 5 7 8 13 12 19 On Entrance 6 | . 7 8 9 13 4 Naked Turns . | . . . . . . Heaviest Build 17 | 15 15 15 11 11 17 Greatest Support 20 | 20 20 20 12 12 17 Greatest Overweight (x) 1 | . 1 1 . . 1 Average Overweight (x) . | . . . . . . Largest Inventory Capacity 8 | 8 8 8 5 5 5 Average Capacity 5 | 7 8 5 5 5 5 Most Carried 5 | 4 5 5 4 3 3 Average Carried 2 | 1 4 3 2 . 1 Final Capacity 8 | 8 8 5 5 5 5 Final Carried 4 | 4 3 4 1 . 3 Class Distribution -------------------- 50% | Mutant 49% | Scavenger-Mutant Dominant Class ---------------- Mutant | -10/Materials Scavenger-Mutant | -10/Mines Scavenger-Mutant | -9/Materials Scavenger-Mutant | -8/Materials Mutant | -7/Factory Resources | -11 -10 -10 -9 -8 -7 ----------- Run | Yrd Mat Min Mat Mat Fac Matter Collected 994 | 309 191 139 109 68 178 Remotely . | . . . . . . Salvage Created 1156 | 131 429 74 109 60 353 Parts 79 | 8 22 14 10 3 22 Haulers Intercepted . | . . . . . . Recyclers Shooed 1 | . . 1 . . . Parts Field Recycled . | . . . . . . Retrieved Matter . | . . . . . . Parts Self-Destructed . | . . . . . . Prevented . | . . . . . . Kills | -11 -10 -10 -9 -8 -7 ------- Run | Yrd Mat Min Mat Mat Fac Combat Hostiles Destroyed 25 | . 9 6 2 1 7 Melee 5 | . . . . . 5 Guns 20 | . 9 6 2 1 2 Classes Destroyed 8 | 2 3 . 1 . 2 Worker 3 | . . . . . 3 Tunneler 2 | 2 . . . . . Recycler 3 | 1 2 . . . . Watcher 1 | . 1 . . . . Swarmer 10 | . 3 6 . . 1 Grunt 12 | . 6 . . 1 5 Sentry 2 | . . . 2 . . Programmer 1 | . . . . . 1 Best Kill Streak 6 | 2 6 3 1 1 4 Combat Bots Only 4 | . 3 3 1 1 4 Max Kills in Single Turn 2 | 2 1 1 1 1 1 Gunslinging . | . . . . . . Exploded . | . . . . . . Melee 1 | . . . . . 1 Uniques/NPCs Destroyed . | . . . . . . Combat | -11 -10 -10 -9 -8 -7 -------- Run | Yrd Mat Min Mat Mat Fac Hostile Shots Fired 197 | . 46 31 24 43 53 Missed 56 | . 12 12 9 9 14 Hits 141 | . 34 19 15 34 39 Projectile 141 | . 34 19 15 34 39 Critical Strikes 4 | . 1 . . 2 1 Damage Taken 2036 | . 397 161 186 714 578 Core 556 | . 114 6 75 239 122 Absorbed by Shields . | . . . . . . Redirected to Shielding 70 | . . 5 12 27 26 Regen/Repaired (Parts) 33 | . . . . 33 . Core Remaining (%) 72 | 100 . 52 81 56 . Volleys Fired 99 | 9 36 12 12 14 16 Largest 2 | 2 2 2 2 2 2 Hottest 130 | 40 40 40 40 40 130 Shots Fired 196 | 18 72 24 24 27 31 Gun 196 | 18 72 24 24 27 31 Cannon . | . . . . . . Launcher . | . . . . . . Special . | . . . . . . Kinetic 165 | 18 72 24 24 27 . Thermal 31 | . . . . . 31 Explosive . | . . . . . . Electromagnetic . | . . . . . . Robot Hit Streak 14 | 4 11 3 14 7 10 Robot Miss Streak 6 | 3 5 5 4 5 6 Penetration Max . | . . . . . . Secondary Targets 6 | . 3 1 . 1 1 Max Gunslinging Chain 1 | . 1 1 . 1 1 Shots Hit Robots 137 | 10 43 13 17 15 39 Core Hits 62 | 4 22 7 7 6 16 Critical Kills . | . . . . . . Critical Parts Destroyed . | . . . . . . Critical Strikes 1 | . . . . . 1 Burn 1 | . . . . . 1 Melee Attacks 43 | . . . . 14 29 Impact . | . . . . . . Slashing 23 | . . . . 14 9 Piercing 20 | . . . . . 20 Sneak Attacks 3 | . . . . . 3 Combat Hostiles 2 | . . . . . 2 Follow-up Attacks . | . . . . . . Damage Inflicted 2067 | 148 543 129 141 114 992 Guns 1414 | 148 537 129 141 114 345 Cannons . | . . . . . . Explosions . | . . . . . . Melee 551 | . . . . . 551 Ramming 102 | . 6 . . . 96 Kinetic 1069 | 148 537 129 141 114 . Thermal 345 | . . . . . 345 Explosive . | . . . . . . Electromagnetic . | . . . . . . Impact . | . . . . . . Slashing 48 | . . . . . 48 Piercing 503 | . . . . . 503 Highest Corruption 6 | . 1 1 . 6 4 Average Corruption 1 | . 1 1 . 5 3 Corruption Purged . | . . . . . . Corruption Blocked . | . . . . . . Effects 8 | . . 3 . 2 3 Message Errors 3 | . . 2 . . 1 Matter Fused 2 | . . 1 . 1 . Energy Discharges 1 | . . . . . 1 Data Loss (minor) 1 | . . . . 1 . Alerts 1 | . . . . . 1 Overload Shots . | . . . . . . Overflow Damage . | . . . . . . Projectiles . | . . . . . . Explosions . | . . . . . . Melee . | . . . . . . Knockbacks . | . . . . . . Impact . | . . . . . . Kinetic . | . . . . . . Secondary . | . . . . . . Self-Inflicted Damage 48 | . 3 . . . 45 Shots . | . . . . . . Rammed 11 | . 1 . . . 10 Targets Rammed 11 | . 1 . . . 10 Kicked . | . . . . . . Crushed . | . . . . . . Highest Temperature 265 | . 28 8 17 5 265 Average Temperature 66 | . 9 4 7 5 115 Received Heat Transfer 675 | . 204 30 45 234 162 Siege Activations . | . . . . . . Martial Activations . | . . . . . . Shielding Activations . | . . . . . . Robots Disrupted . | . . . . . . Combat Hostiles . | . . . . . . Robots Corrupted 1 | . . . . . 1 Combat Hostiles . | . . . . . . Parts Fried 3 | . . . . . 3 Impact Corruptions 1 | . . . . . 1 Robots Melted . | . . . . . . Combat Hostiles . | . . . . . . Parts Melted 2 | . . . . . 2 Heat Transferred 888 | . . . . . 888 Parts Sabotaged . | . . . . . . Parts Stolen . | . . . . . . Parts Stripped . | . . . . . . Power Chain Reactions . | . . . . . . Alert | -11 -10 -10 -9 -8 -7 ------- Run | Yrd Mat Min Mat Mat Fac Maximum Alert Level . | . . . . . . Low Security (%) 100 | 100 100 100 100 100 100 Level 1 . | . . . . . . Level 2 . | . . . . . . Level 3 . | . . . . . . Level 4 . | . . . . . . Level 5 . | . . . . . . High Security . | . . . . . . Max Security . | . . . . . . Peak Influence 167 | 10 167 86 30 104 101 Initial 19 | . . 16 19 . . Average 39 | 2 86 32 9 38 31 Influence Increases 988 | 15 268 140 60 222 283 Destroy 0b10 Robot/C 500 | . 180 120 40 20 140 Destroy 0b10 Robot/NC 45 | 15 15 . . . 15 Destroy Leader 122 | . 42 20 20 10 30 Successful Hack 53 | . . . . 32 21 Disable Machine 15 | . 15 . . . . Destroy Structure 13 | . 1 . . 10 2 Partial Spotted 45 | . . . . 30 15 Lose Combat Pursuer 195 | . 15 . . 120 60 Influence Decreases 925 | 15 226 132 110 222 220 Entered New Map 57 | . . 26 31 . . Time Decay 654 | 15 196 106 69 118 150 Lost Part 214 | . 30 . 10 104 70 Squads Dispatched 13 | . 2 1 . 3 7 Investigation 6 | . . 1 . 1 4 Extermination 1 | . . . . . 1 Reinforcement 6 | . 2 . . 2 2 Assault . | . . . . . . Garrison . | . . . . . . Intercept . | . . . . . . Searches Triggered . | . . . . . . Construction Impeded 1 | . . . . . 1 Haulers Reinforced . | . . . . . . Active Scanning Responses . | . . . . . . Cargo Convoy Interrupts . | . . . . . . Stealth | -11 -10 -10 -9 -8 -7 --------- Run | Yrd Mat Min Mat Mat Fac Distress Signals 6 | . 3 . 3 . . Communications Jammed . | . . . . . . Distress Signals . | . . . . . . Times Spotted 68 | . 14 9 10 15 20 Peak Tracking Total 7 | . 5 3 6 4 7 Tactical Retreats 8 | . 1 . . 5 2 Traps | -11 -10 -10 -9 -8 -7 ------- Run | Yrd Mat Min Mat Mat Fac Traps Triggered 1 | . . . . . 1 Indirectly . | . . . . . . Trap Hack Attempts . | . . . . . . Triggered . | . . . . . . Disarmed 6 | . . . . 6 . Reprogrammed . | . . . . . . Reused . | . . . . . . Traps Extracted . | . . . . . . Installed . | . . . . . . Triggered . | . . . . . . Machines | -11 -10 -10 -9 -8 -7 ---------- Run | Yrd Mat Min Mat Mat Fac Machines Disabled 1 | . 1 . . . . Max in Single Turn 1 | . 1 . . . . Machines Repaired . | . . . . . . Machines Dismantled . | . . . . . . Machines Sabotaged . | . . . . . . Overloaded Fab Kills . | . . . . . . Hacking | -11 -10 -10 -9 -8 -7 --------- Run | Yrd Mat Min Mat Mat Fac Machines Accessed 14 | . . 1 . 7 6 Terminals 12 | . . 1 . 5 6 Fabricators . | . . . . . . Repair Stations 2 | . . . . 2 . Recycling Units . | . . . . . . Scanalyzers . | . . . . . . Garrison Access . | . . . . . . Total Hacks 53 | . . 5 . 32 16 Successful 27 | . . 1 . 19 7 Failed 26 | . . 4 . 13 9 Catastrophic 3 | . . . . . 3 Database Lockouts . | . . . . . . Manual 20 | . . 4 . 10 6 Terminals 45 | . . 5 . 24 16 Fabricators . | . . . . . . Repair Stations 8 | . . . . 8 . Recycling Units . | . . . . . . Scanalyzers . | . . . . . . Garrison Access . | . . . . . . Terminal Hacks 14 | . . 1 . 10 3 Record 5 | . . 1 . 3 1 Robot Analysis 1 | . . . . 1 . Open DSF 1 | . . . . . 1 Emergency Access Points 2 | . . . . 2 . Garrison Index 1 | . . . . . 1 Alert Level 1 | . . . . 1 . Locate Traps 1 | . . . . 1 . Disarm Traps 1 | . . . . 1 . Zone Layout 1 | . . . . 1 . Fabricator Hacks . | . . . . . . Repair Station Hacks 5 | . . . . 5 . Scan Component 2 | . . . . 2 . Repair 2 | . . . . 2 . Refit 1 | . . . . 1 . Recycling Unit Hacks . | . . . . . . Scanalyzer . | . . . . . . Garrison Access Hacks . | . . . . . . Unauthorized Hacks 8 | . . . . 4 4 Terminals 8 | . . . . 4 4 Track 7 | . . . . 3 4 Operators 1 | . . . . 1 . Fabricators . | . . . . . . Repair Stations . | . . . . . . Recycling Units . | . . . . . . Scanalyzers . | . . . . . . Garrison Access . | . . . . . . Data Cores Recovered . | . . . . . . Used . | . . . . . . Hacking Detections 10 | . . 1 . 4 5 Full Trace Events 6 | . . 1 . 1 4 Feedback Events . | . . . . . . Feedback Blocked . | . . . . . . Robot Schematics Acquired . | . . . . . . Robots Built . | . . . . . . Authchips . | . . . . . . Time . | . . . . . . Total Robot Build Rating . | . . . . . . Part Schematics Acquired . | . . . . . . Parts Built . | . . . . . . Authchips . | . . . . . . Time . | . . . . . . Total Part Build Rating . | . . . . . . Parts Repaired 2 | . . . . 2 . Time 52 | . . . . 52 . Parts Recycled . | . . . . . . Recycled Matter . | . . . . . . Retrieved Matter . | . . . . . . Retrieved Components . | . . . . . . Parts Scanalyzed . | . . . . . . Part Schematics Acquired . | . . . . . . Parts Damaged . | . . . . . . Bothacking | -11 -10 -10 -9 -8 -7 ------------ Run | Yrd Mat Min Mat Mat Fac Used RIF Installer . | . . . . . . Robots Hacked . | . . . . . . Non-combat . | . . . . . . Combat . | . . . . . . Robot Hacks Applied . | . . . . . . Relay Couplers Released . | . . . . . . Fabnet Peak Effective % . | . . . . . . Robots Rewired . | . . . . . . Allies Hacked . | . . . . . . Hacks Repelled . | . . . . . . Allies | -11 -10 -10 -9 -8 -7 -------- Run | Yrd Mat Min Mat Mat Fac Total Allies . | . . . . . . Largest Group . | . . . . . . Highest-Rated Group . | . . . . . . Highest-Rated Ally . | . . . . . . Total Orders . | . . . . . . Ally Attacks . | . . . . . . Total Damage . | . . . . . . Kills . | . . . . . . Allies Corrupted . | . . . . . . Allies Melted . | . . . . . . Intel | -11 -10 -10 -9 -8 -7 ------- Run | Yrd Mat Min Mat Mat Fac Active Infowar (turns) 815 | 10 402 286 117 . . Terrain 690 | 4 283 286 117 . . Seismic 125 | 6 119 . . . . Robot Analysis Total 1 | . . . . 1 . Derelict Logs Recovered 2 | . . 2 . . . Drone Launches . | . . . . . . Drone Recoveries . | . . . . . . Exploration | -11 -10 -10 -9 -8 -7 ------------- Run | Yrd Mat Min Mat Mat Fac Turns Passed 2004 | 94 424 286 282 321 597 Spaces Moved 1423 | 58 94 224 183 417 447 Core 16 | 2 . . . 4 10 Treads . | . . . . . . Legs . | . . . . . . Wheels 164 | 56 94 14 . . . Hover 437 | . . . . . 437 Flight 806 | . . 210 183 413 . Fastest Speed 34 | 50 80 37 34 34 50 Average Speed 46 | 78 86 41 34 34 52 Slowest Speed 117 | 80 95 117 34 50 110 Overloaded Moves . | . . . . . . Propulsion Burnouts . | . . . . . . Robots Hopped 14 | . . 7 3 4 . Potential Cave-ins . | . . . . . . Cave-ins Triggered 2 | . . . . 2 . Exploration Rate (%) 23 | 3 24 45 25 34 9 Regions Visited 5 Branch Regions 1 Pre-discovered Areas . | . . . . . . Known Exits Taken 1 | . . . . 1 . Unknown Exits Taken 4 | 1 1 1 1 . . Scrap Searched 1 | . . 1 . . . Spaces Dug 15 | . . . . 13 2 Terrain Destroyed 15 | . . . . 13 2 Melee 15 | . . . . 13 2 Projectile . | . . . . . . AOE . | . . . . . . Terrain Rammed . | . . . . . . Walls Destroyed . | . . . . . . Machines Disabled . | . . . . . . Actions | -11 -10 -10 -9 -8 -7 --------- Run | Yrd Mat Min Mat Mat Fac Total 2499 | 87 364 392 380 542 734 Wait 810 | . 231 126 175 82 196 Move 1393 | 57 93 212 176 408 447 Hop 11 | . . 4 3 4 . Pick Up 52 | 12 1 14 4 6 15 Fast Attach . | . . . . . . Attach 44 | 7 2 7 6 8 14 Detach 6 | . . 1 . 2 3 Swap 7 | 1 . 4 1 1 . Drop 22 | 1 . 12 3 3 3 Fire 99 | 9 36 12 12 14 16 Melee 43 | . . . . 14 29 Ram 11 | . 1 . . . 10 Kick . | . . . . . . Crush . | . . . . . . Escape Stasis . | . . . . . . Rewire 1 | . . . . . 1 Trap . | . . . . . . Miscellaneous . | . . . . . . Route ------- -11/Scrapyard -10/Materials -10/Mines -9/Materials -8/Materials -7/Factory (discovered 1 exit: [*Fac]) History --------- Turn | Location | Event 8 | -11/Scrapyard | Discovered new exit (range 16) 95 | -11/Scrapyard | Entered Materials 314 | -10/Materials | Build established: Mutant 492 | -10/Materials | Discovered new exit (range 13) 519 | -10/Materials | Entered Mines 719 | -10/Mines | Discovered new exit (range 14) 732 | -10/Mines | Learned Materials terminal intel 749 | -10/Mines | Learned Materials terminal intel 805 | -10/Mines | Entered Materials 805 | -9/Materials | Evolved 2 slots: Propulsion x1, Utility x1 806 | -9/Materials | Loaded intel: 12 terminal locations 845 | -9/Materials | Build established: Scavenger-Mutant 1081 | -9/Materials | Discovered new exit (range 15) 1087 | -9/Materials | Entered another Materials area 1087 | -8/Materials | Evolved 2 slots: Power x1, Utility x1 1088 | -8/Materials | Loaded intel: 12 terminal locations 1132 | -8/Materials | Repaired Flight Unit 1289 | -8/Materials | Discovered new exit (range 15) 1355 | -8/Materials | Crushed by falling debris 1363 | -8/Materials | Crushed by falling debris 1394 | -8/Materials | Lost 4 parts (1p1n2u) 1400 | -8/Materials | Repaired Flight Unit 1407 | -8/Materials | Identified exit to Factory 1408 | -8/Materials | Entered Factory 1408 | -7/Factory | Evolved 2 slots: Propulsion x1, Utility x1 1426 | -7/Factory | Discovered new exit (range 8) 1437 | -7/Factory | Lost 5 parts (2p2n1u) 1669 | -7/Factory | Build established: Mutant 2005 | -7/Factory | Self-destructed Last Messages --------------- ALERT: Suspicious activity at Terminal F025. Dispatching Investigation squad. Slammed into U-05 Engineer. Destabilizing: System corrupted (+2). Slammed into U-05 Engineer. GIUGAFPN0H6DLAPIZ6% GS% K-01 Serf cleans the Construction Platform. Slammed into K-01 Serf. K-01 Serf cleans the Construction Platform. Slammed into K-01 Serf. K-01 Serf cleans the Construction Platform. System corrupted: Energy discharge (-59). K-01 Serf cleans the Construction Platform. Slammed into K-01 Serf. K-01 Serf destroyed. Slug penetrates DSF Access. Cld. Airjet destroyed. System corrupted: IFF burst signal emitted. Slug penetrates DSF Access. Particle Gun destroyed. Map ----- +----------------------------------------------------+ | ?????????????????????????????????????# # | | ?????????????????????????????????????# ##+# | | ?????????????????????????????????????### #### | | ???????????????????????????????????????# #??# | | ?#+#???????????????????????????????????# #??# | | ?# ???????????????????????????????????# #??# | | ?# ????????????????????????????????# #??# | | ?# ???????????????????????????????# #??# | | ## ????? #????????????????????????# #??# #### | | */ ?? #????????????????????????# #??#%#??? | | *! #???????????????????????##+####+###? | | """ #???????????????????????# ! #? | | """"" #???????????????????????# ! ]#? | | """"" ????????????????????????# #? | | ??????????????????????????# +? | | ?????????????????##########?# """%""" #? | | ?? ???????????????????# ! #?# """%""" #? | | ?##+#######??????????????# """ #?# """ """ #? | | ?# #??????????????# """ #?# #? | | + """" #??????????????# """ #?#####+###### | | # """" #??????????????# #????# % % | | / """" #??????????????# """ ###### ##### | | #### """" #??????????????# """ + #???? | | ???# """" #??????????????# """ ###### #???? | | ???# """" !#??????????##### #????# #???? | | ???# """" ############T@####+#######???# #???? | | ???# %%% / % ggh g=%!% #???? | | ???###################################??## #???? | | ?????????????????????????????????????????# #???? | | ?????????????????????????????????????????# #???? | | ?????????????????????????????????????????# #???? | | ?????????????????????????????????????????# #???? | | ?????????????????????????????????????????+ +???? | | ?????????????????????????????????????????# #???? | | ?????????????????????????????????????????# #???? | | ?????????????????????????????????????????# #???? | | ?????????????????????????????????????????? ???? | | ?????????????????????????????????????????? ????? | | ?????????????????????????????????????????????????? | | ?????????????????????????????????????????????????? | | ?????????????????????????????????????????????????? | | ?????????????????????????????????????????????????? | | ?????????????????????????????????????????????????? | | ?????????????????????????????????????????????????? | | ?????????????????????????????????????????????????? | | ?????????????????????????????????????????????????? | | ?????????????????????????????????????????????????? | | ?????????????????????????????????????????????????? | | ?????????????????????????????????????????????????? | | ?????????????????????????????????????????????????? | +----------------------------------------------------+ Best States ------------- Heat Dissipation 48 Energy Generation 21 Energy Capacity 315 Matter Stores 300 Matter Capacity 300 Sight Range 16 Terrain Scan Range 16 Terrain Scan Density 10 Core Shielding 20 Propulsion Shielding 33 Evasion (%) 63 Defensive Hacking 10 Item Schematics ----------------- None Robot Schematics ------------------ None Fabricated ------------ Nothing Repaired ---------- Flight Unit | 15% | -8/Materials Flight Unit | 20% | -8/Materials Alien Tech Used ----------------- None Achievements -------------- Cya! Challenges ------------ None Game ------ Seed SapperJunkSheargun Manual? 0 Play Time 00:41:25 Cumulative 8.9 hours Start 2025.09.06 @ 13:21:51 End 2025.09.06 @ 14:10:47 Sessions 1 Manual Loads 0 Difficulty Rogue Special Mode None Game No. 10 Rogue 10 Adventurer 0 Explorer 0 Win Type - Total 0 Types 0/0/0/0/0/0/0/0/0/0 Lore% 4 Gallery% 11 Achievement% 16 Wizard Run 0 Options --------- Layout 1 ASCII 0 Keyboard 0 Movement Mouse Keybinds 0 Fullscreen 1 Font 24/Smallcaps Map View 50x35 Zoom Use 0% Tactical HUD 0 Map Filters NONE Filters NONE Steam 1 RUN: a4b7f9f5-a0a9-4ae8-809d-0247b4773b1a